fUST/lending_fUST_20250602
["ID","MTS","AMOUNT","RATE_DAILY","PERIOD"]
[363795973,1748874639478,-430.0,0.00016556,2]
[363795974,1748874639488,-430.0,0.00016556,2]
[363795975,1748874639498,-430.0,0.00016556,2]
[363795976,1748874639508,-430.0,0.00016556,2]
[363795977,1748874639517,-430.0,0.00016556,2]
[363795978,1748874639527,-430.0,0.00016556,2]
[363795979,1748874639537,-430.0,0.00016556,2]
[363795980,1748874639547,-430.0,0.00016556,2]
[363795981,1748874639556,-430.0,0.00016556,2]
[363795982,1748874639566,-430.0,0.00016556,2]
[363795983,1748874639575,-430.0,0.00016556,2]
[363795984,1748874639586,-430.0,0.00016556,2]
[363795985,1748874639595,-430.0,0.00016556,2]
[363795987,1748874639605,-430.0,0.00016556,2]
[363795989,1748874639614,-430.0,0.00016556,2]
[363795991,1748874639624,-430.0,0.00016556,2]
[363795993,1748874639633,-724.26,0.00016556,2]
[363795995,1748874639643,-430.0,0.00016556,2]
[363795997,1748874639652,-678.76,0.00016556,2]
[363795999,1748874639662,-559.41,0.00016556,2]
[363796001,1748874639671,-430.0,0.00016556,2]
[363796003,1748874639681,-430.0,0.00016556,2]
[363796005,1748874639691,-655.97,0.00016556,2]
[363796007,1748874639700,-430.0,0.00016556,2]
[363796009,1748874639709,-1184.71,0.00016556,2]
[363796011,1748874639719,-430.0,0.00016556,2]
[363796013,1748874639733,-495.00729806,0.00016556,2]
[363796015,1748874639742,-430.0,0.00016556,2]
[363796017,1748874639752,-443.90257549,0.00016556,2]
[363796019,1748874639763,-430.0,0.00016556,2]
[363796021,1748874639772,-430.0,0.00016556,2]
[363796023,1748874639782,-430.0,0.00016556,2]
[363796025,1748874639791,-430.0,0.00016557,2]
[363796027,1748874639801,-350.0,0.00016557,2]
[363796029,1748874639811,-430.0,0.00016557,2]
[363796031,1748874639821,-411.37198917,0.00016557,2]
[363796033,1748874639832,-430.0,0.00016557,2]
[363796035,1748874639841,-472.01067594,0.00016557,2]
[363796037,1748874639852,-430.0,0.00016557,2]
[363796039,1748874639861,-455.28,0.00016557,2]
[363796041,1748874639872,-430.0,0.00016557,2]
[363796043,1748874639882,-167.53287648,0.00016557,2]
[363796045,1748874639891,-430.0,0.00016557,2]
[363796047,1748874639902,-430.0,0.00016557,2]
[363796049,1748874639913,-430.0,0.00016557,2]
[363796051,1748874639923,-430.0,0.00016557,2]
[363796053,1748874639932,-430.0,0.00016557,2]
[363796055,1748874639942,-430.0,0.00016557,2]
[363796057,1748874639951,-430.0,0.00016557,2]
[363796059,1748874639961,-430.0,0.00016557,2]
[363796061,1748874639972,-430.0,0.00016557,2]
[363796063,1748874639982,-430.0,0.00016557,2]
[363796065,1748874639991,-435.487845,0.00016557,2]
[363796066,1748874640000,-430.0,0.00016557,2]
[363796067,1748874640010,-430.0,0.00016557,2]
[363796068,1748874640024,-433.76464637,0.00016557,2]
[363796069,1748874640034,-430.8592449,0.00016557,2]
[363796070,1748874640044,-295.24297421,0.00016557,2]
[363796071,1748874640055,-430.0,0.00016557,2]
[363796072,1748874640064,-430.0,0.00016557,2]
[363796073,1748874640074,-430.0,0.00016557,2]
[363796074,1748874640084,-430.0,0.00016557,2]
[363796075,1748874640094,-500.0,0.00016557,2]
[363796076,1748874640104,-430.0,0.00016557,2]
[363796077,1748874640113,-332.72482161,0.00016557,2]
[363796078,1748874640123,-280.03668619,0.00016557,2]
[363796079,1748874640133,-540.11780852,0.00016557,2]
[363796080,1748874640143,-430.0,0.00016557,2]
[363796081,1748874640152,-319.19415265,0.00016557,2]
[363796082,1748874640163,-417.59661249,0.00016557,2]
[363796083,1748874640173,-430.0,0.00016557,2]
[363796085,1748874640184,-430.0,0.00016557,2]
[363796086,1748874640193,-430.0,0.00016557,2]
[363796087,1748874640203,-430.0,0.00016557,2]
[363796088,1748874640212,-430.0,0.00016557,2]
[363796090,1748874640224,-430.0,0.00016557,2]
[363796092,1748874640234,-430.0,0.00016557,2]
[363796094,1748874640244,-588.0,0.00016557,2]
[363796096,1748874640254,-430.0,0.00016557,2]
[363796098,1748874640264,-430.0,0.00016557,2]
[363796100,1748874640273,-400.0,0.00016557,2]
[363796102,1748874640283,-430.0,0.00016557,2]
[363796104,1748874640292,-427.18,0.00016557,2]
[363796106,1748874640302,-430.0,0.00016557,2]
[363796108,1748874640311,-430.0,0.00016557,2]
[363796110,1748874640319,-430.0,0.00016557,2]
[363796112,1748874640330,-430.0,0.00016557,2]
[363796114,1748874640339,-408.58806194,0.00016557,2]
[363796116,1748874640348,-430.0,0.00016557,2]
[363796118,1748874640357,-430.0,0.00016557,2]
[363796120,1748874640367,-430.0,0.00016557,2]
[363796122,1748874640377,-430.0,0.00016557,2]
[363796124,1748874640387,-375.13339297,0.00016557,2]
[363796126,1748874640397,-407.40789181,0.00016557,2]
[363796128,1748874640407,-430.0,0.00016557,2]
[363796130,1748874640417,-430.0,0.00016557,2]
[363796132,1748874640426,-417.96383107,0.00016557,2]
[363796134,1748874640436,-430.0,0.00016557,2]
[363796136,1748874640446,-407.42542297,0.00016557,2]
[363796138,1748874640456,-430.0,0.00016557,2]
[363796140,1748874640466,-430.0,0.00016557,2]
[363796142,1748874640479,-430.0,0.00016557,2]
[363796144,1748874640489,-430.0,0.00016557,2]
[363796146,1748874640499,-430.0,0.00016557,2]
[363796148,1748874640509,-430.0,0.00016557,2]
[363796150,1748874640519,-430.0,0.00016557,2]
[363796152,1748874640529,-430.0,0.00016557,2]
[363796154,1748874640539,-362.78172173,0.00016557,2]
[363796156,1748874640549,-430.0,0.00016557,2]
[363796158,1748874640558,-430.0,0.00016557,2]
[363796160,1748874640567,-430.0,0.00016557,2]
[363796162,1748874640579,-430.0,0.00016557,2]
[363796164,1748874640589,-430.0,0.00016557,2]
[363796166,1748874640599,-430.0,0.00016557,2]
[363796168,1748874640609,-430.0,0.00016557,2]
[363796171,1748874640620,-430.0,0.00016557,2]
[363796173,1748874640630,-430.0,0.00016557,2]
[363796175,1748874640640,-500.0,0.00016558,2]
[363796177,1748874640650,-506.56287931,0.00016558,2]
[363796179,1748874640660,-526.46,0.0001656,2]
[363796181,1748874640671,-160.0,0.00016562,2]
[363796183,1748874640681,-541.24314168,0.00016564,2]
[363796185,1748874640692,-179.26119844,0.00016731,2]
[363796187,1748874640702,-430.0,0.00016827,2]
[363796189,1748874640712,-430.0,0.00016827,2]
[363796191,1748874640724,-430.0,0.00016827,2]
[363796193,1748874640734,-430.0,0.00016827,2]
[363796195,1748874640744,-604.54,0.00016827,2]
[363796197,1748874640754,-430.0,0.00016827,2]
[363796199,1748874640763,-430.0,0.00016827,2]
[363796201,1748874640773,-462.42,0.00016827,2]
[363796203,1748874640783,-1896.35,0.00016827,2]
[363796205,1748874640793,-430.0,0.00016827,2]
[363796207,1748874640802,-430.0,0.00016827,2]
[363796209,1748874640811,-430.0,0.00016828,2]
[363796211,1748874640821,-430.0,0.00016828,2]
[363796213,1748874640831,-430.0,0.00016828,2]
[363796215,1748874640841,-430.0,0.00016828,2]
[363796217,1748874640850,-430.0,0.00016828,2]
[363796219,1748874640860,-430.0,0.00016828,2]
[363796221,1748874640870,-430.0,0.00016828,2]
[363796223,1748874640879,-430.0,0.00016828,2]
[363796225,1748874640889,-430.0,0.00016828,2]
[363796227,1748874640899,-430.0,0.00016828,2]
[363796229,1748874640909,-430.0,0.00016828,2]
[363796231,1748874640920,-430.0,0.00016828,2]
[363796233,1748874640930,-430.0,0.00016828,2]
[363796235,1748874640939,-430.0,0.00016828,2]
[363796237,1748874640950,-430.0,0.00016828,2]
[363796239,1748874640959,-430.0,0.00016828,2]
[363796241,1748874640969,-430.0,0.00016828,2]
[363796243,1748874640982,-430.0,0.00016828,2]
[363796245,1748874640991,-430.0,0.00016828,2]
[363796247,1748874641001,-876.09,0.00016828,2]
[363796249,1748874641011,-430.0,0.00016829,2]
[363796251,1748874641025,-430.0,0.00016829,2]
[363796254,1748874641035,-520.78,0.00016829,2]
[363796256,1748874641045,-430.0,0.00016829,2]
[363796258,1748874641055,-430.0,0.00016829,2]
[363796260,1748874641064,-430.0,0.00016829,2]
[363796262,1748874641074,-430.0,0.00016829,2]
[363796263,1748874641083,-430.0,0.00016829,2]
[363796265,1748874641092,-430.0,0.00016829,2]
[363796267,1748874641103,-430.0,0.00016829,2]
[363796269,1748874641114,-430.0,0.00016829,2]
[363796272,1748874641124,-430.0,0.00016829,2]
[363796274,1748874641133,-430.0,0.00016829,2]
[363796276,1748874641143,-430.0,0.00016829,2]
[363796278,1748874641152,-430.0,0.00016829,2]
[363796280,1748874641164,-430.0,0.00016829,2]
[363796282,1748874641174,-430.0,0.00016829,2]
[363796284,1748874641184,-430.0,0.00016829,2]
[363796286,1748874641194,-430.0,0.00016829,2]
[363796288,1748874641204,-430.0,0.00016829,2]
[363796290,1748874641213,-430.0,0.00016829,2]
[363796292,1748874641225,-430.0,0.00016829,2]
[363796294,1748874641235,-555.17,0.00016829,2]
[363796296,1748874641244,-430.0,0.00016829,2]
[363796297,1748874641254,-430.0,0.00016829,2]
[363796300,1748874641264,-403.78931813,0.00016829,2]
[363796302,1748874641273,-241.76049263,0.0001683,2]
[363796304,1748874641283,-430.0,0.0001683,2]
[363796306,1748874641293,-430.0,0.0001683,2]
[363796308,1748874641303,-430.0,0.0001683,2]
[363796310,1748874641313,-430.0,0.0001683,2]
[363796312,1748874641323,-470.0,0.0001683,2]
[363796314,1748874641333,-430.0,0.0001683,2]
[363796316,1748874641343,-430.0,0.0001683,2]
[363796318,1748874641353,-430.0,0.0001683,2]
[363796320,1748874641364,-551.38219742,0.0001683,2]
[363796322,1748874641374,-430.0,0.0001683,2]
[363796324,1748874641384,-430.0,0.0001683,2]
[363796326,1748874641394,-430.0,0.0001683,2]
[363796328,1748874641405,-430.0,0.0001683,2]
[363796330,1748874641416,-430.0,0.0001683,2]
[363796332,1748874641426,-430.0,0.0001683,2]
[363796334,1748874641436,-430.0,0.0001683,2]
[363796336,1748874641448,-430.0,0.0001683,2]
[363796338,1748874641459,-430.0,0.0001683,2]
[363796340,1748874641469,-430.0,0.0001683,2]
[363796342,1748874641489,-724.26,0.0001683,2]
[363796344,1748874641499,-430.0,0.0001683,2]
[363796346,1748874641510,-678.76,0.0001683,2]
[363796348,1748874641521,-559.41,0.0001683,2]
[363796350,1748874641533,-430.0,0.0001683,2]
[363796352,1748874641543,-379.39189322,0.0001683,2]
[363796354,1748874641554,-430.0,0.0001683,2]
[363796356,1748874641566,-1184.71,0.0001683,2]
[363796358,1748874641577,-430.0,0.0001683,2]
[363796360,1748874641588,-430.0,0.0001683,2]
[363796362,1748874641600,-430.0,0.0001683,2]
[363796364,1748874641611,-430.0,0.0001683,2]
[363796366,1748874641623,-430.0,0.0001683,2]
[363796368,1748874641634,-430.0,0.00016831,2]
[363796370,1748874641645,-430.0,0.00016831,2]
[363796372,1748874641656,-288.42506343,0.00016831,2]
[363796374,1748874641668,-430.0,0.00016831,2]
[363796376,1748874641679,-430.0,0.00016831,2]
[363796378,1748874641691,-430.0,0.00016831,2]
[363796380,1748874641703,-430.0,0.00016831,2]
[363796383,1748874641715,-430.0,0.00016831,2]
[363796386,1748874641742,-430.0,0.00016831,2]
[363796388,1748874641758,-430.0,0.00016831,2]
[363796390,1748874641771,-430.0,0.00016831,2]
[363796392,1748874641783,-395.98781562,0.00016831,2]
[363796394,1748874641794,-589.30486617,0.00016831,2]
[363796396,1748874641807,-430.0,0.00016831,2]
[363796398,1748874641818,-430.0,0.00016831,2]
[363796400,1748874641830,-304.33418264,0.00016831,2]
[363796402,1748874641842,-430.0,0.00016831,2]
[363796404,1748874641853,-344.95831681,0.00016831,2]
[363796406,1748874641865,-551.69256863,0.00016831,2]
[363796408,1748874641876,-430.0,0.00016831,2]
[363796411,1748874641887,-430.0,0.00016831,2]
[363796413,1748874641898,-430.0,0.00016831,2]
[363796415,1748874641908,-396.00502743,0.00016831,2]
[363796417,1748874641919,-430.0,0.00016831,2]
[363796419,1748874641930,-430.0,0.00016831,2]
[363796421,1748874641941,-430.0,0.00016831,2]
[363796423,1748874641951,-362.84174524,0.00016831,2]
[363796425,1748874641962,-430.0,0.00016831,2]
[363796427,1748874641976,-430.0,0.00016831,2]
[363796429,1748874641987,-430.0,0.00016831,2]
[363796431,1748874641997,-430.0,0.00016831,2]
[363796433,1748874642008,-430.0,0.00016831,2]
[363796435,1748874642020,-463.43471647,0.00016831,2]
[363796437,1748874642030,-430.0,0.00016831,2]
[363796439,1748874642040,-430.0,0.00016831,2]
[363796441,1748874642051,-430.0,0.00016831,2]
[363796443,1748874642061,-430.0,0.00016831,2]
[363796445,1748874642072,-430.0,0.00016831,2]
[363796447,1748874642082,-430.0,0.00017101,2]
[363796449,1748874642092,-430.0,0.00017101,2]
[363796451,1748874642104,-430.0,0.00017101,2]
[363796453,1748874642115,-604.54,0.00017101,2]
[363796456,1748874642125,-430.0,0.00017101,2]
[363796458,1748874642136,-430.0,0.00017101,2]
[363796460,1748874642146,-462.42,0.00017101,2]
[363796462,1748874642157,-1896.35,0.00017101,2]
[363796464,1748874642168,-430.0,0.00017101,2]
[363796466,1748874642178,-430.0,0.00017101,2]
[363796468,1748874642189,-430.0,0.00017102,2]
[363796470,1748874642199,-430.0,0.00017102,2]
[363796472,1748874642210,-430.0,0.00017102,2]
[363796474,1748874642220,-430.0,0.00017102,2]
[363796476,1748874642234,-430.0,0.00017102,2]
[363796478,1748874642245,-430.0,0.00017102,2]
[363796480,1748874642255,-430.0,0.00017102,2]
[363796482,1748874642265,-430.0,0.00017102,2]
[363796484,1748874642276,-430.0,0.00017102,2]
[363796487,1748874642286,-430.0,0.00017102,2]
[363796490,1748874642297,-430.0,0.00017102,2]
[363796493,1748874642307,-430.0,0.00017102,2]
[363796495,1748874642318,-430.0,0.00017102,2]
[363796497,1748874642328,-430.0,0.00017102,2]
[363796499,1748874642339,-430.0,0.00017102,2]
[363796501,1748874642349,-430.0,0.00017102,2]
[363796503,1748874642359,-876.09,0.00017102,2]
[363796505,1748874642370,-430.0,0.00017103,2]
[363796507,1748874642380,-520.78,0.00017103,2]
[363796509,1748874642390,-430.0,0.00017103,2]
[363796511,1748874642400,-430.0,0.00017103,2]
[363796513,1748874642411,-490.0,0.00017103,2]
[363796515,1748874642421,-430.0,0.00017103,2]
[363796517,1748874642432,-336.82939588,0.00017103,2]
[363796519,1748874642442,-430.0,0.00017103,2]
[363796521,1748874642453,-430.0,0.00017103,2]
[363796524,1748874642464,-430.0,0.00017103,2]
[363796526,1748874642478,-430.0,0.00017103,2]
[363796528,1748874642489,-430.0,0.00017103,2]
[363796531,1748874642500,-430.0,0.00017103,2]
[363796533,1748874642511,-430.0,0.00017103,2]
[363796535,1748874642521,-430.0,0.00017103,2]
[363796537,1748874642531,-430.0,0.00017103,2]
[363796539,1748874642541,-430.0,0.00017103,2]
[363796541,1748874642551,-430.0,0.00017103,2]
[363796543,1748874642561,-430.0,0.00017103,2]
[363796546,1748874642573,-430.0,0.00017103,2]
[363796548,1748874642584,-555.17,0.00017103,2]
[363796550,1748874642594,-430.0,0.00017103,2]
[363796552,1748874642604,-430.0,0.00017103,2]
[363796554,1748874642615,-442.57542213,0.00017104,2]
[363796556,1748874642625,-430.0,0.00017104,2]
[363796558,1748874642635,-430.0,0.00017104,2]
[363796560,1748874642646,-430.0,0.00017104,2]
[363796562,1748874642656,-430.0,0.00017104,2]
[363796564,1748874642666,-430.0,0.00017104,2]
[363796566,1748874642677,-430.0,0.00017104,2]
[363796568,1748874642687,-430.0,0.00017104,2]
[363796570,1748874642698,-430.0,0.00017104,2]
[363796573,1748874642709,-430.0,0.00017104,2]
[363796575,1748874642718,-430.0,0.00017104,2]
[363796577,1748874642730,-210.96170617,0.00017104,2]
[363796579,1748874642741,-430.0,0.00017104,2]
[363796581,1748874642752,-724.26,0.00017104,2]
[363796583,1748874642762,-678.76,0.00017104,2]
[363796585,1748874642772,-559.41,0.00017104,2]
[363796587,1748874642781,-430.0,0.00017104,2]
[363796589,1748874642792,-1184.71,0.00017104,2]
[363796591,1748874642802,-430.0,0.00017104,2]
[363796593,1748874642813,-430.0,0.00017104,2]
[363796595,1748874642823,-430.0,0.00017104,2]
[363796597,1748874642833,-430.0,0.00017104,2]
[363796600,1748874642844,-430.0,0.00017105,2]
[363796602,1748874642854,-424.74852935,0.00017105,2]
[363796604,1748874642864,-430.0,0.00017105,2]
[363796606,1748874642874,-430.0,0.00017105,2]
[363796608,1748874642884,-430.0,0.00017105,2]
[363796610,1748874642894,-430.0,0.00017105,2]
[363796612,1748874642904,-400.0,0.00017105,2]
[363796614,1748874642914,-430.0,0.00017105,2]
[363796616,1748874642924,-381.91660989,0.00017105,2]
[363796618,1748874642934,-430.0,0.00017105,2]
[363796620,1748874642946,-430.0,0.00017105,2]
[363796622,1748874642959,-430.0,0.00017105,2]
[363796624,1748874642971,-536.80791853,0.00017105,2]
[363796626,1748874642982,-382.77796731,0.00017105,2]
[363796629,1748874642993,-430.0,0.00017105,2]
[363796631,1748874643002,-430.0,0.00017105,2]
[363796634,1748874643013,-430.0,0.00017105,2]
[363796636,1748874643027,-430.0,0.00017105,2]
[363796639,1748874643037,-152.52403429,0.00017105,2]
[363796641,1748874643046,-430.0,0.00017105,2]
[363796643,1748874643056,-210.12001961,0.00017105,2]
[363796645,1748874643067,-430.0,0.00017105,2]
[363796647,1748874643077,-430.0,0.00017105,2]
[363796649,1748874643087,-430.0,0.00017105,2]
[363796651,1748874643099,-430.0,0.00017105,2]
[363796653,1748874643109,-153.75242241,0.00017174,2]
[363796655,1748874643120,-201.88241541,0.00017174,2]
[363796657,1748874643130,-500.0,0.00017174,2]
[363796659,1748874643140,-255.8221097,0.00017174,2]
[363796661,1748874643151,-500.0,0.00017174,2]
[363796663,1748874643161,-500.0,0.00017174,2]
[363796666,1748874643173,-500.0,0.00017174,2]
[363796668,1748874643183,-500.0,0.00017174,2]
[363796670,1748874643193,-500.0,0.00017174,2]
[363796672,1748874643204,-500.0,0.00017174,2]
[363796674,1748874643219,-500.0,0.00017174,2]
[363796676,1748874643235,-271.58187595,0.00017224,2]
[363796679,1748874643246,-500.0,0.00017234,2]
[363796681,1748874643256,-500.0,0.00017234,2]
[363796683,1748874643266,-500.0,0.00017244,2]
[363796684,1748874643276,-500.0,0.00017258,2]
[363796686,1748874643287,-500.0,0.00017258,2]
[363796688,1748874643297,-445.31375362,0.00017258,2]
[363796690,1748874643308,-500.0,0.00017262,2]
[363796692,1748874643318,-500.0,0.00017262,2]
[363796694,1748874643328,-500.79122663,0.00017262,2]
[363796695,1748874643338,-500.0,0.00017262,2]
[363796697,1748874643349,-500.0,0.00017267,2]
[363796699,1748874643359,-481.41240202,0.00017278,2]
[363796700,1748874643369,-500.0,0.00017278,2]
[363796701,1748874643379,-500.0,0.00017278,2]
[363796702,1748874643389,-500.0,0.00017278,2]
[363796703,1748874643399,-503.10535846,0.00017278,2]
[363796704,1748874643409,-500.0,0.00017278,2]
[363796705,1748874643420,-300.46231514,0.00017307,2]
[363796706,1748874643430,-500.0,0.00017307,2]
[363796707,1748874643440,-500.0,0.00017307,2]
[363796708,1748874643451,-500.0,0.00017307,2]
[363796709,1748874643462,-430.0,0.00017375,2]
[363796710,1748874643476,-430.0,0.00017375,2]
[363796711,1748874643486,-430.0,0.00017375,2]
[363796712,1748874643497,-604.54,0.00017375,2]
[363796713,1748874643508,-530.15385059,0.00017375,2]
[363796714,1748874643518,-430.0,0.00017375,2]
[363796715,1748874643528,-462.42,0.00017375,2]
[363796717,1748874643539,-1896.35,0.00017375,2]
[363796718,1748874643549,-430.0,0.00017375,2]
[363796719,1748874643559,-430.0,0.00017375,2]
[363796720,1748874643569,-430.0,0.00017376,2]
[363796721,1748874643580,-430.0,0.00017376,2]
[363796722,1748874643590,-430.0,0.00017376,2]
[363796723,1748874643600,-430.0,0.00017376,2]
[363796724,1748874643611,-430.0,0.00017376,2]
[363796725,1748874643622,-430.0,0.00017376,2]
[363796726,1748874643633,-430.0,0.00017376,2]
[363796727,1748874643644,-393.27296898,0.00017376,2]
[363796728,1748874643655,-437.83798343,0.00017376,2]
[363796729,1748874643665,-430.0,0.00017376,2]
[363796730,1748874643675,-430.0,0.00017376,2]
[363796731,1748874643686,-430.0,0.00017376,2]
[363796732,1748874643696,-430.0,0.00017376,2]
[363796733,1748874643707,-430.0,0.00017376,2]
[363796734,1748874643718,-253.74095329,0.00017376,2]
[363796735,1748874643732,-876.09,0.00017376,2]
[363796736,1748874643743,-430.0,0.00017377,2]
[363796737,1748874643753,-520.78,0.00017377,2]
[363796738,1748874643764,-430.0,0.00017377,2]
[363796739,1748874643775,-430.0,0.00017377,2]
[363796740,1748874643786,-430.0,0.00017377,2]
[363796741,1748874643797,-430.0,0.00017377,2]
[363796742,1748874643809,-430.0,0.00017377,2]
[363796743,1748874643980,-430.0,0.00017377,2]
[363796744,1748874643991,-430.0,0.00017377,2]
[363796745,1748874644001,-430.0,0.00017377,2]
[363796746,1748874644011,-574.89539332,0.00017377,2]
[363796747,1748874644022,-430.0,0.00017377,2]
[363796748,1748874644032,-162.97156676,0.00017377,2]
[363796749,1748874644043,-430.0,0.00017377,2]
[363796750,1748874644054,-430.0,0.00017377,2]
[363796751,1748874644064,-430.0,0.00017377,2]
[363796752,1748874644074,-430.0,0.00017377,2]
[363796753,1748874644083,-555.17,0.00017377,2]
[363796754,1748874644093,-430.0,0.00017377,2]
[363796755,1748874644104,-430.0,0.00017378,2]
[363796756,1748874644114,-430.0,0.00017378,2]
[363796757,1748874644124,-430.0,0.00017378,2]
[363796758,1748874644134,-430.0,0.00017378,2]
[363796759,1748874644144,-430.0,0.00017378,2]
[363796760,1748874644154,-430.0,0.00017378,2]
[363796761,1748874644164,-430.0,0.00017378,2]
[363796762,1748874644174,-430.0,0.00017378,2]
[363796763,1748874644184,-430.0,0.00017378,2]
[363796764,1748874644195,-724.26,0.00017378,2]
[363796765,1748874644205,-678.76,0.00017378,2]
[363796766,1748874644214,-559.41,0.00017378,2]
[363796767,1748874644226,-1184.71,0.00017378,2]
[363796768,1748874644236,-430.0,0.00017378,2]
[363796769,1748874644246,-430.0,0.00017378,2]
[363796770,1748874644257,-430.0,0.00017378,2]
[363796771,1748874644267,-430.0,0.00017378,2]
[363796772,1748874644276,-430.0,0.00017379,2]
[363796773,1748874644286,-536.79,0.00017379,2]
[363796774,1748874644296,-430.0,0.00017379,2]
[363796775,1748874644305,-430.0,0.00017379,2]
[363796776,1748874644315,-430.0,0.00017379,2]
[363796777,1748874644324,-430.0,0.00017379,2]
[363796778,1748874644333,-430.0,0.00017379,2]
[363796779,1748874644343,-430.0,0.00017379,2]
[363796780,1748874644352,-430.0,0.00017379,2]
[363796781,1748874644361,-430.0,0.00017379,2]
[363796782,1748874644371,-430.0,0.00017379,2]
[363796783,1748874644380,-430.0,0.00017379,2]
[363796784,1748874644390,-430.0,0.00017379,2]
[363796785,1748874644399,-430.0,0.00017379,2]
[363796786,1748874644408,-430.0,0.00017379,2]
[363796787,1748874644418,-151.0,0.00017386,2]
[363796788,1748874644427,-151.0,0.00017386,2]
[363796789,1748874644437,-2930.9,0.00017387,2]
[363796790,1748874644447,-2930.9,0.00017387,2]
[363796791,1748874644456,-165.8,0.00017412,2]
[363796792,1748874644466,-165.80871838,0.00017412,2]
[363796793,1748874644478,-206.82424844,0.000176,2]
[363796794,1748874644489,-430.0,0.00017649,2]
[363796795,1748874644499,-430.0,0.00017649,2]
[363796796,1748874644510,-430.0,0.00017649,2]
[363796797,1748874644520,-604.54,0.00017649,2]
[363796798,1748874644530,-430.0,0.00017649,2]
[363796799,1748874644539,-462.42,0.00017649,2]
[363796800,1748874644550,-1896.35,0.00017649,2]
[363796801,1748874644559,-438.33354368,0.00017649,2]
[363796802,1748874644570,-430.0,0.00017649,2]
[363796803,1748874644580,-430.0,0.0001765,2]
[363796804,1748874644589,-430.0,0.0001765,2]
[363796805,1748874644599,-430.0,0.0001765,2]
[363796806,1748874644609,-430.0,0.0001765,2]
[363796807,1748874644621,-430.0,0.0001765,2]
[363796808,1748874644631,-430.0,0.0001765,2]
[363796809,1748874644642,-285.45419088,0.0001765,2]
[363796810,1748874644653,-430.0,0.0001765,2]
[363796811,1748874644662,-208.06,0.0001765,2]
[363796812,1748874644673,-430.0,0.0001765,2]
[363796813,1748874644683,-430.0,0.0001765,2]
[363796814,1748874644693,-430.0,0.0001765,2]
[363796815,1748874644703,-876.09,0.0001765,2]
[363796816,1748874644713,-520.78,0.00017651,2]
[363796817,1748874644725,-430.0,0.00017651,2]
[363796818,1748874644735,-430.0,0.00017651,2]
[363796819,1748874644744,-430.0,0.00017651,2]
[363796820,1748874644754,-430.0,0.00017651,2]
[363796821,1748874644764,-430.0,0.00017651,2]
[363796822,1748874644774,-430.0,0.00017651,2]
[363796823,1748874644785,-275.70767632,0.00017651,2]
[363796824,1748874644795,-430.0,0.00017651,2]
[363796825,1748874644805,-430.0,0.00017651,2]
[363796826,1748874644815,-430.0,0.00017651,2]
[363796827,1748874644825,-430.0,0.00017651,2]
[363796828,1748874644835,-430.0,0.00017651,2]